[Event "Titled Tuesday Blitz May 03 Early 2022"]
[White "Ljukin, Sergei"]
[Black "Jaracz, Pawel"]
[WhiteFideId "14102200"]
[BlackFideId "1102222"]
[WhiteElo "2312"]
[BlackElo "2429"]
[Result "1-0"]
[Round "07"]
[TimeControl "180+1"]
[Date "2022.05.03"]
[WhiteClock "0:00:22"]
[BlackClock "0:00:25"]

1. e4 {[%clk 0:02:02]}  c5 {[%clk 0:02:59]} 2. Nf3 {[%clk 0:02:02]}  Nc6 {[%clk 0:02:59]} 3. d4 {[%clk 0:02:02]}  cxd4 {[%clk 0:02:59]} 4. Nxd4 {[%clk 0:02:03]}  Nf6 {[%clk 0:02:59]} 5. Nc3 {[%clk 0:02:03]}  e5 {[%clk 0:03:00]} 6. Ndb5 {[%clk 0:02:04]}  d6 {[%clk 0:03:00]} 7. Nd5 {[%clk 0:02:04]}  Nxd5 {[%clk 0:02:59]} 8. exd5 {[%clk 0:02:05]}  Ne7 {[%clk 0:03:00]} 9. c3 {[%clk 0:02:05]}  Ng6 {[%clk 0:02:59]} 10. Qa4 {[%clk 0:02:04]}  Bd7 {[%clk 0:02:59]} 11. Qb4 {[%clk 0:02:01]}  Qb8 {[%clk 0:02:58]} 12. Qc4 {[%clk 0:02:01]}  Kd8 {[%clk 0:02:54]} 13. a4 {[%clk 0:01:56]}  Be7 {[%clk 0:02:50]} 14. Be3 {[%clk 0:01:56]}  f5 {[%clk 0:02:44]} 15. f3 {[%clk 0:01:51]}  Bh4+ {[%clk 0:02:23]} 16. g3 {[%clk 0:01:44]}  Bf6 {[%clk 0:02:22]} 17. Bd3 {[%clk 0:01:43]}  Ne7 {[%clk 0:02:19]} 18. Qb4 {[%clk 0:01:40]}  Nc8 {[%clk 0:02:18]} 19. a5 {[%clk 0:01:22]}  Bxb5 {[%clk 0:02:11]} 20. Qxb5 {[%clk 0:01:18]}  a6 {[%clk 0:02:04]} 21. Qb4 {[%clk 0:01:13]}  Ke7 {[%clk 0:02:02]} 22. Bxf5 {[%clk 0:01:13]}  g6 {[%clk 0:01:45]} 23. Be6 {[%clk 0:01:12]}  Kf8 {[%clk 0:01:43]} 24. O-O {[%clk 0:01:02]}  Kg7 {[%clk 0:01:43]} 25. f4 {[%clk 0:01:02]}  e4 {[%clk 0:01:09]} 26. Qxe4 {[%clk 0:00:45]}  Ne7 {[%clk 0:01:10]} 27. Bd4 {[%clk 0:00:39]}  Rf8 {[%clk 0:01:09]} 28. f5 {[%clk 0:00:37]}  g5 {[%clk 0:01:09]} 29. Qg4 {[%clk 0:00:36]}  h6 {[%clk 0:01:06]} 30. h4 {[%clk 0:00:35]}  Bxd4+ {[%clk 0:00:58]} 31. Qxd4+ {[%clk 0:00:35]}  Rf6 {[%clk 0:00:47]} 32. hxg5 {[%clk 0:00:33]}  hxg5 {[%clk 0:00:47]} 33. Qg4 {[%clk 0:00:32]}  Qh8 {[%clk 0:00:27]} 34. Qxg5+ {[%clk 0:00:30]}  Kf8 {[%clk 0:00:28]} 35. Kg2 {[%clk 0:00:27]}  Qg7 {[%clk 0:00:26]} 36. Qf4 {[%clk 0:00:25]}  Ng6 {[%clk 0:00:25]} 37. Qxd6+ {[%clk 0:00:22]} 1-0


[Site "https://www.chess.com"]

[Event "Titled Tuesday Blitz May 03 Early 2022"]
[White "Mammadzada, Gunay"]
[Black "Bocharov, Dmitry"]
[WhiteFideId "13403729"]
[BlackFideId "4138716"]
[WhiteElo "2482"]
[BlackElo "2732"]
[Result "1-0"]
[Round "07"]
[TimeControl "180+1"]
[Date "2022.05.03"]
[WhiteClock "0:00:21"]
[BlackClock "0:00:21"]

1. e4 {[%clk 0:02:54]}  c5 {[%clk 0:02:59]} 2. Nf3 {[%clk 0:02:53]}  d6 {[%clk 0:02:59]} 3. d4 {[%clk 0:02:52]}  cxd4 {[%clk 0:03:00]} 4. Nxd4 {[%clk 0:02:52]}  Nf6 {[%clk 0:03:01]} 5. Nc3 {[%clk 0:02:53]}  a6 {[%clk 0:03:02]} 6. Be2 {[%clk 0:02:46]}  e5 {[%clk 0:03:01]} 7. Nf3 {[%clk 0:02:43]}  Be7 {[%clk 0:03:00]} 8. Bg5 {[%clk 0:02:43]}  Nbd7 {[%clk 0:02:54]} 9. Nd2 {[%clk 0:02:41]}  h6 {[%clk 0:02:52]} 10. Bxf6 {[%clk 0:02:40]}  Nxf6 {[%clk 0:02:53]} 11. Nc4 {[%clk 0:02:41]}  O-O {[%clk 0:02:53]} 12. a4 {[%clk 0:02:39]}  Be6 {[%clk 0:02:52]} 13. a5 {[%clk 0:02:37]}  Rc8 {[%clk 0:02:51]} 14. Nb6 {[%clk 0:02:36]}  Rc5 {[%clk 0:02:51]} 15. O-O {[%clk 0:02:34]}  Rxa5 {[%clk 0:02:40]} 16. Rxa5 {[%clk 0:02:29]}  Qxb6 {[%clk 0:02:40]} 17. Qa1 {[%clk 0:02:25]}  Rc8 {[%clk 0:02:39]} 18. Bd3 {[%clk 0:02:22]}  Bd8 {[%clk 0:02:27]} 19. Ra4 {[%clk 0:02:11]}  Qc5 {[%clk 0:02:27]} 20. Qa3 {[%clk 0:02:10]}  Bb6 {[%clk 0:02:24]} 21. Qxc5 {[%clk 0:02:02]}  Bxc5 {[%clk 0:02:25]} 22. Ne2 {[%clk 0:01:33]}  Rc6 {[%clk 0:02:17]} 23. h3 {[%clk 0:01:22]}  Kf8 {[%clk 0:01:53]} 24. c4 {[%clk 0:01:22]}  Rb6 {[%clk 0:01:52]} 25. Rb1 {[%clk 0:01:21]}  Ke7 {[%clk 0:01:40]} 26. b4 {[%clk 0:01:16]}  Bd4 {[%clk 0:01:37]} 27. Nxd4 {[%clk 0:01:15]}  exd4 {[%clk 0:01:37]} 28. c5 {[%clk 0:01:07]}  Rc6 {[%clk 0:01:00]} 29. b5 {[%clk 0:00:58]}  axb5 {[%clk 0:00:52]} 30. cxd6+ {[%clk 0:00:55]}  Kxd6 {[%clk 0:00:52]} 31. Rxb5 {[%clk 0:00:50]}  Rc1+ {[%clk 0:00:37]} 32. Kh2 {[%clk 0:00:49]}  Kc7 {[%clk 0:00:37]} 33. Rab4 {[%clk 0:00:46]}  Bc8 {[%clk 0:00:35]} 34. Rxd4 {[%clk 0:00:44]}  Nd7 {[%clk 0:00:34]} 35. Rc4+ {[%clk 0:00:41]}  Rxc4 {[%clk 0:00:33]} 36. Bxc4 {[%clk 0:00:42]}  f6 {[%clk 0:00:29]} 37. Be6 {[%clk 0:00:41]}  Ne5 {[%clk 0:00:27]} 38. Rc5+ {[%clk 0:00:36]}  Nc6 {[%clk 0:00:26]} 39. Bxc8 {[%clk 0:00:33]}  Kxc8 {[%clk 0:00:27]} 40. f4 {[%clk 0:00:33]}  Kd7 {[%clk 0:00:28]} 41. Kg3 {[%clk 0:00:32]}  b6 {[%clk 0:00:27]} 42. Rb5 {[%clk 0:00:31]}  Kc7 {[%clk 0:00:28]} 43. e5 {[%clk 0:00:31]}  fxe5 {[%clk 0:00:28]} 44. fxe5 {[%clk 0:00:32]}  Nd4 {[%clk 0:00:29]} 45. Rb1 {[%clk 0:00:29]}  Kc6 {[%clk 0:00:25]} 46. Kf4 {[%clk 0:00:29]}  Ne2+ {[%clk 0:00:24]} 47. Kf5 {[%clk 0:00:28]}  b5 {[%clk 0:00:22]} 48. e6 {[%clk 0:00:26]}  Kd6 {[%clk 0:00:21]} 49. e7 {[%clk 0:00:21]} 1-0


[Site "https://www.chess.com"]

[Event "Titled Tuesday Blitz May 03 Early 2022"]
[White "Martinez Alcantara, Jose Eduardo"]
[Black "Piesik, Piotr"]
[WhiteFideId "3805662"]
[BlackFideId "1136194"]
[WhiteElo "2690"]
[BlackElo "2190"]
[Result "1-0"]
[Round "07"]
[TimeControl "180+1"]
[Date "2022.05.03"]
[WhiteClock "0:01:02"]
[BlackClock "0:01:11"]

1. e4 {[%clk 0:03:00]}  g6 {[%clk 0:02:57]} 2. d4 {[%clk 0:03:00]}  Bg7 {[%clk 0:02:57]} 3. c3 {[%clk 0:03:01]}  d6 {[%clk 0:02:56]} 4. Bd3 {[%clk 0:03:01]}  Nd7 {[%clk 0:02:57]} 5. f4 {[%clk 0:03:02]}  e5 {[%clk 0:02:57]} 6. Nf3 {[%clk 0:03:03]}  Qe7 {[%clk 0:02:56]} 7. O-O {[%clk 0:03:02]}  Ngf6 {[%clk 0:02:56]} 8. Nbd2 {[%clk 0:02:54]}  O-O {[%clk 0:02:56]} 9. Re1 {[%clk 0:02:53]}  exf4 {[%clk 0:02:52]} 10. Nc4 {[%clk 0:02:52]}  Nh5 {[%clk 0:02:51]} 11. e5 {[%clk 0:02:51]}  d5 {[%clk 0:02:44]} 12. Ncd2 {[%clk 0:02:51]}  Nb6 {[%clk 0:02:43]} 13. a4 {[%clk 0:02:48]}  a5 {[%clk 0:02:42]} 14. b3 {[%clk 0:02:48]}  Re8 {[%clk 0:02:39]} 15. Ba3 {[%clk 0:02:45]}  Qd8 {[%clk 0:02:39]} 16. Qe2 {[%clk 0:02:41]}  Bg4 {[%clk 0:02:37]} 17. Qf2 {[%clk 0:02:41]}  Bxf3 {[%clk 0:02:32]} 18. Nxf3 {[%clk 0:02:39]}  Bf8 {[%clk 0:02:31]} 19. Bxf8 {[%clk 0:02:24]}  Kxf8 {[%clk 0:02:32]} 20. g4 {[%clk 0:02:22]}  fxg3 {[%clk 0:02:31]} 21. hxg3 {[%clk 0:02:23]}  Ng7 {[%clk 0:02:27]} 22. Rf1 {[%clk 0:02:18]}  Kg8 {[%clk 0:02:25]} 23. Nh2 {[%clk 0:02:16]}  Re7 {[%clk 0:02:20]} 24. Ng4 {[%clk 0:02:15]}  Nh5 {[%clk 0:02:10]} 25. Nh6+ {[%clk 0:01:57]}  Kg7 {[%clk 0:02:09]} 26. Nf5+ {[%clk 0:01:55]}  Kg8 {[%clk 0:02:00]} 27. g4 {[%clk 0:01:53]}  Ng7 {[%clk 0:01:58]} 28. Nh6+ {[%clk 0:01:52]}  Kh8 {[%clk 0:01:57]} 29. Qh4 {[%clk 0:01:47]}  Qe8 {[%clk 0:01:46]} 30. Rf2 {[%clk 0:01:44]}  f5 {[%clk 0:01:35]} 31. exf6 {[%clk 0:01:41]}  Re1+ {[%clk 0:01:34]} 32. Rxe1 {[%clk 0:01:36]}  Qxe1+ {[%clk 0:01:35]} 33. Kg2 {[%clk 0:01:36]}  Ne6 {[%clk 0:01:35]} 34. g5 {[%clk 0:00:57]}  Qe3 {[%clk 0:01:23]} 35. Nf7+ {[%clk 0:00:56]}  Kg8 {[%clk 0:01:23]} 36. Bxg6 {[%clk 0:00:57]}  hxg6 {[%clk 0:01:12]} 37. Qh8+ {[%clk 0:00:58]}  Kxf7 {[%clk 0:01:12]} 38. Qh7+ {[%clk 0:00:59]}  Kf8 {[%clk 0:01:12]} 39. Qe7+ {[%clk 0:01:00]}  Kg8 {[%clk 0:01:13]} 40. f7+ {[%clk 0:01:01]}  Kh8 {[%clk 0:01:13]} 41. f8=Q+ {[%clk 0:01:01]}  Rxf8 {[%clk 0:01:11]} 42. Rxf8+ {[%clk 0:01:01]}  Nxf8 {[%clk 0:01:11]} 43. Qxe3 {[%clk 0:01:02]} 1-0


[Site "https://www.chess.com"]

[Event "Titled Tuesday Blitz May 03 Early 2022"]
[White "Matinian, Nikita"]
[Black "Dauner, Benedikt"]
[WhiteFideId "24129100"]
[BlackFideId "16225899"]
[WhiteElo "2422"]
[BlackElo "2230"]
[Result "1-0"]
[Round "07"]
[TimeControl "180+1"]
[Date "2022.05.03"]
[WhiteClock "0:00:05"]
[BlackClock "0:00:01"]

1. e4 {[%clk 0:03:00]}  Nf6 {[%clk 0:02:59]} 2. e5 {[%clk 0:02:59]}  Nd5 {[%clk 0:03:00]} 3. d4 {[%clk 0:03:00]}  d6 {[%clk 0:03:00]} 4. Nf3 {[%clk 0:03:00]}  g6 {[%clk 0:03:00]} 5. Bc4 {[%clk 0:03:00]}  Nb6 {[%clk 0:03:00]} 6. Bb3 {[%clk 0:03:00]}  Bg7 {[%clk 0:03:01]} 7. O-O {[%clk 0:02:59]}  O-O {[%clk 0:03:00]} 8. Qe2 {[%clk 0:02:57]}  Bg4 {[%clk 0:02:58]} 9. c3 {[%clk 0:02:55]}  Nc6 {[%clk 0:02:57]} 10. e6 {[%clk 0:02:50]}  d5 {[%clk 0:02:38]} 11. h3 {[%clk 0:02:41]}  Bxf3 {[%clk 0:02:31]} 12. Qxf3 {[%clk 0:02:42]}  fxe6 {[%clk 0:02:28]} 13. Qg4 {[%clk 0:02:43]}  Qd6 {[%clk 0:02:25]} 14. Nd2 {[%clk 0:02:34]}  Rf7 {[%clk 0:02:13]} 15. Nf3 {[%clk 0:02:26]}  e5 {[%clk 0:01:58]} 16. Ng5 {[%clk 0:02:07]}  Rf5 {[%clk 0:01:55]} 17. Ne4 {[%clk 0:02:02]}  Qd8 {[%clk 0:01:27]} 18. Ng3 {[%clk 0:01:50]}  Rf8 {[%clk 0:01:16]} 19. dxe5 {[%clk 0:01:35]}  Nxe5 {[%clk 0:01:17]} 20. Qe6+ {[%clk 0:01:36]}  Kh8 {[%clk 0:01:16]} 21. Bg5 {[%clk 0:01:36]}  Bf6 {[%clk 0:00:55]} 22. f4 {[%clk 0:01:33]}  Nec4 {[%clk 0:00:45]} 23. Rae1 {[%clk 0:01:16]}  Qd6 {[%clk 0:00:40]} 24. Bxf6+ {[%clk 0:00:54]}  exf6 {[%clk 0:00:38]} 25. Qxd6 {[%clk 0:00:51]}  Nxd6 {[%clk 0:00:37]} 26. Re7 {[%clk 0:00:51]}  Rf7 {[%clk 0:00:34]} 27. Rfe1 {[%clk 0:00:51]}  Raf8 {[%clk 0:00:26]} 28. f5 {[%clk 0:00:47]}  Rxe7 {[%clk 0:00:23]} 29. Rxe7 {[%clk 0:00:46]}  Rf7 {[%clk 0:00:24]} 30. Re6 {[%clk 0:00:38]}  Nxf5 {[%clk 0:00:21]} 31. Nxf5 {[%clk 0:00:37]}  gxf5 {[%clk 0:00:22]} 32. Bc2 {[%clk 0:00:37]}  f4 {[%clk 0:00:20]} 33. Kf2 {[%clk 0:00:34]}  Kg7 {[%clk 0:00:20]} 34. Kf3 {[%clk 0:00:29]}  Nc4 {[%clk 0:00:19]} 35. b3 {[%clk 0:00:28]}  Ne5+ {[%clk 0:00:18]} 36. Kxf4 {[%clk 0:00:27]}  Ng6+ {[%clk 0:00:18]} 37. Bxg6 {[%clk 0:00:20]}  hxg6 {[%clk 0:00:19]} 38. g4 {[%clk 0:00:20]}  Rd7 {[%clk 0:00:19]} 39. Re8 {[%clk 0:00:15]}  c5 {[%clk 0:00:18]} 40. Ke3 {[%clk 0:00:12]}  d4+ {[%clk 0:00:17]} 41. cxd4 {[%clk 0:00:12]}  cxd4+ {[%clk 0:00:18]} 42. Kd3 {[%clk 0:00:13]}  a6 {[%clk 0:00:16]} 43. Re4 {[%clk 0:00:10]}  Kh6 {[%clk 0:00:11]} 44. h4 {[%clk 0:00:10]}  f5 {[%clk 0:00:06]} 45. gxf5 {[%clk 0:00:11]}  gxf5 {[%clk 0:00:06]} 46. Rxd4 {[%clk 0:00:11]}  Rxd4+ {[%clk 0:00:04]} 47. Kxd4 {[%clk 0:00:12]}  Kh5 {[%clk 0:00:04]} 48. Ke5 {[%clk 0:00:10]}  Kg4 {[%clk 0:00:02]} 49. h5 {[%clk 0:00:11]}  f4 {[%clk 0:00:03]} 50. h6 {[%clk 0:00:12]}  f3 {[%clk 0:00:04]} 51. h7 {[%clk 0:00:12]}  f2 {[%clk 0:00:05]} 52. h8=Q {[%clk 0:00:13]}  f1=Q {[%clk 0:00:05]} 53. Qg7+ {[%clk 0:00:13]}  Kh5 {[%clk 0:00:05]} 54. Qxb7 {[%clk 0:00:10]}  Qa1+ {[%clk 0:00:04]} 55. Kd6 {[%clk 0:00:08]}  Qxa2 {[%clk 0:00:05]} 56. Kc5 {[%clk 0:00:07]}  Qa3+ {[%clk 0:00:05]} 57. b4 {[%clk 0:00:07]}  Kg5 {[%clk 0:00:04]} 58. Qe7+ {[%clk 0:00:05]}  Kf5 {[%clk 0:00:04]} 59. Kb6 {[%clk 0:00:05]}  Qa4 {[%clk 0:00:04]} 60. Qc5+ {[%clk 0:00:06]}  Ke6 {[%clk 0:00:03]} 61. Qa5 {[%clk 0:00:06]}  Qb3 {[%clk 0:00:01]} 62. Kxa6 {[%clk 0:00:06]}  Kd7 {[%clk 0:00:02]} 63. Qc5 {[%clk 0:00:05]}  Kd8 {[%clk 0:00:02]} 64. b5 {[%clk 0:00:05]}  Qa4+ {[%clk 0:00:02]} 65. Kb7 {[%clk 0:00:05]}  Qa2 {[%clk 0:00:01]} 66. b6 {[%clk 0:00:05]} 1-0


[Site "https://www.chess.com"]

[Event "Titled Tuesday Blitz May 03 Early 2022"]
[White "Melikhov, Evgeny V."]
[Black "Harish, Neeraj"]
[WhiteFideId "4122046"]
[BlackFideId "30958130"]
[WhiteElo "1931"]
[BlackElo "1574"]
[Result "1-0"]
[Round "07"]
[TimeControl "180+1"]
[Date "2022.05.03"]
[WhiteClock "0:00:36"]
[BlackClock "0:00:01"]

1. d4 {[%clk 0:03:00]}  d5 {[%clk 0:02:56]} 2. c4 {[%clk 0:03:00]}  c6 {[%clk 0:02:55]} 3. Nc3 {[%clk 0:02:59]}  Nf6 {[%clk 0:02:54]} 4. e3 {[%clk 0:02:59]}  e6 {[%clk 0:02:54]} 5. Nf3 {[%clk 0:03:00]}  Bd6 {[%clk 0:02:51]} 6. Bd3 {[%clk 0:02:59]}  O-O {[%clk 0:02:50]} 7. O-O {[%clk 0:02:59]}  dxc4 {[%clk 0:02:48]} 8. Bxc4 {[%clk 0:02:59]}  b5 {[%clk 0:02:48]} 9. Bb3 {[%clk 0:02:58]}  Bb7 {[%clk 0:02:45]} 10. e4 {[%clk 0:02:55]}  Bc7 {[%clk 0:02:37]} 11. e5 {[%clk 0:02:52]}  Nd5 {[%clk 0:02:37]} 12. Ne4 {[%clk 0:02:52]}  Nd7 {[%clk 0:02:26]} 13. Bg5 {[%clk 0:02:49]}  Qe8 {[%clk 0:02:03]} 14. Qe2 {[%clk 0:02:47]}  c5 {[%clk 0:02:00]} 15. Nxc5 {[%clk 0:02:42]}  Nxc5 {[%clk 0:02:00]} 16. dxc5 {[%clk 0:02:42]}  h6 {[%clk 0:01:51]} 17. Bd2 {[%clk 0:02:33]}  Qe7 {[%clk 0:01:41]} 18. Rac1 {[%clk 0:02:16]}  Bc6 {[%clk 0:01:35]} 19. Bc2 {[%clk 0:02:14]}  f6 {[%clk 0:01:13]} 20. b4 {[%clk 0:02:09]}  a5 {[%clk 0:01:05]} 21. a3 {[%clk 0:02:08]}  axb4 {[%clk 0:01:04]} 22. axb4 {[%clk 0:02:08]}  Ra2 {[%clk 0:00:47]} 23. Qd3 {[%clk 0:02:05]}  f5 {[%clk 0:00:42]} 24. Nd4 {[%clk 0:02:04]}  Qd7 {[%clk 0:00:36]} 25. Nxc6 {[%clk 0:01:55]}  Qxc6 {[%clk 0:00:37]} 26. Bb3 {[%clk 0:01:53]}  Rb2 {[%clk 0:00:18]} 27. f4 {[%clk 0:01:48]}  Rd8 {[%clk 0:00:16]} 28. Rf2 {[%clk 0:01:06]}  Nxf4 {[%clk 0:00:09]} 29. Qc3 {[%clk 0:00:58]}  Rbxd2 {[%clk 0:00:05]} 30. Rxd2 {[%clk 0:00:57]}  Rxd2 {[%clk 0:00:06]} 31. Qxd2 {[%clk 0:00:57]}  Bxe5 {[%clk 0:00:07]} 32. Re1 {[%clk 0:00:53]}  Bc7 {[%clk 0:00:02]} 33. Rf1 {[%clk 0:00:42]}  g5 {[%clk 0:00:01]} 34. Rf2 {[%clk 0:00:36]} 1-0


[Site "https://www.chess.com"]

[Event "Titled Tuesday Blitz May 03 Early 2022"]
[White "Meshkovs, Nikita"]
[Black "Trost, Edvin"]
[WhiteFideId "11602740"]
[BlackFideId "1729519"]
[WhiteElo "2786"]
[BlackElo "2588"]
[Result "1-0"]
[Round "07"]
[TimeControl "180+1"]
[Date "2022.05.03"]
[WhiteClock "0:00:39"]
[BlackClock "0:00:17"]

1. Nf3 {[%clk 0:02:46]}  Nf6 {[%clk 0:02:58]} 2. d4 {[%clk 0:02:46]}  d5 {[%clk 0:02:54]} 3. c4 {[%clk 0:02:45]}  e6 {[%clk 0:02:54]} 4. g3 {[%clk 0:02:44]}  h6 {[%clk 0:02:48]} 5. Bg2 {[%clk 0:02:44]}  Bd6 {[%clk 0:02:48]} 6. O-O {[%clk 0:02:45]}  O-O {[%clk 0:02:49]} 7. b3 {[%clk 0:02:45]}  Nc6 {[%clk 0:02:48]} 8. Bb2 {[%clk 0:02:46]}  Re8 {[%clk 0:02:44]} 9. Nbd2 {[%clk 0:02:46]}  e5 {[%clk 0:02:30]} 10. dxe5 {[%clk 0:02:39]}  Nxe5 {[%clk 0:02:29]} 11. Nxe5 {[%clk 0:02:39]}  Bxe5 {[%clk 0:02:29]} 12. Bxe5 {[%clk 0:02:40]}  Rxe5 {[%clk 0:02:30]} 13. cxd5 {[%clk 0:02:41]}  Bg4 {[%clk 0:02:24]} 14. f3 {[%clk 0:02:41]}  Bd7 {[%clk 0:02:22]} 15. e4 {[%clk 0:02:38]}  c6 {[%clk 0:02:22]} 16. Nc4 {[%clk 0:02:38]}  Re8 {[%clk 0:02:20]} 17. d6 {[%clk 0:02:35]}  b5 {[%clk 0:02:19]} 18. Ne3 {[%clk 0:02:21]}  Qb6 {[%clk 0:02:19]} 19. Qd2 {[%clk 0:02:17]}  Nd5 {[%clk 0:02:16]} 20. Rfe1 {[%clk 0:02:11]}  Nxe3 {[%clk 0:02:13]} 21. Qxe3 {[%clk 0:02:12]}  f6 {[%clk 0:01:59]} 22. f4 {[%clk 0:02:10]}  Rad8 {[%clk 0:01:55]} 23. Qxb6 {[%clk 0:01:56]}  axb6 {[%clk 0:01:56]} 24. e5 {[%clk 0:01:57]}  Kf7 {[%clk 0:01:55]} 25. a4 {[%clk 0:01:41]}  bxa4 {[%clk 0:01:34]} 26. Rxa4 {[%clk 0:01:42]}  Ra8 {[%clk 0:01:34]} 27. Rc4 {[%clk 0:01:33]}  Rac8 {[%clk 0:01:28]} 28. Bf3 {[%clk 0:01:12]}  g6 {[%clk 0:01:23]} 29. h4 {[%clk 0:01:07]}  h5 {[%clk 0:01:21]} 30. Kf2 {[%clk 0:01:06]}  Re6 {[%clk 0:01:19]} 31. Ra4 {[%clk 0:01:01]}  Ke8 {[%clk 0:01:03]} 32. Ra7 {[%clk 0:00:59]}  Kd8 {[%clk 0:01:04]} 33. g4 {[%clk 0:00:52]}  hxg4 {[%clk 0:00:28]} 34. Bxg4 {[%clk 0:00:53]}  f5 {[%clk 0:00:29]} 35. Bf3 {[%clk 0:00:53]}  b5 {[%clk 0:00:22]} 36. h5 {[%clk 0:00:53]}  gxh5 {[%clk 0:00:22]} 37. Rg1 {[%clk 0:00:52]}  c5 {[%clk 0:00:18]} 38. Bxh5 {[%clk 0:00:45]}  c4 {[%clk 0:00:18]} 39. Rg8+ {[%clk 0:00:44]}  Be8 {[%clk 0:00:17]} 40. d7 {[%clk 0:00:39]} 1-0


[Site "https://www.chess.com"]

[Event "Titled Tuesday Blitz May 03 Early 2022"]
[White "Mirzoev, Azer"]
[Black "Pranav, V"]
[WhiteFideId "13400304"]
[BlackFideId "25060783"]
[WhiteElo "2525"]
[BlackElo "2349"]
[Result "1-0"]
[Round "07"]
[TimeControl "180+1"]
[Date "2022.05.03"]
[WhiteClock "0:00:06"]
[BlackClock "0:00:04"]

1. d4 {[%clk 0:02:59]}  d5 {[%clk 0:03:00]} 2. Nf3 {[%clk 0:02:59]}  Nf6 {[%clk 0:03:00]} 3. Bf4 {[%clk 0:02:59]}  c5 {[%clk 0:03:00]} 4. e3 {[%clk 0:03:00]}  Nc6 {[%clk 0:03:00]} 5. c3 {[%clk 0:03:00]}  g6 {[%clk 0:02:59]} 6. Nbd2 {[%clk 0:02:57]}  cxd4 {[%clk 0:02:59]} 7. cxd4 {[%clk 0:02:52]}  Bg7 {[%clk 0:02:59]} 8. h3 {[%clk 0:02:52]}  O-O {[%clk 0:03:00]} 9. Be2 {[%clk 0:02:51]}  Bf5 {[%clk 0:02:52]} 10. a3 {[%clk 0:02:49]}  Rc8 {[%clk 0:02:52]} 11. O-O {[%clk 0:02:46]}  Na5 {[%clk 0:02:51]} 12. Qa4 {[%clk 0:02:37]}  Bc2 {[%clk 0:02:41]} 13. Qb4 {[%clk 0:02:34]}  Re8 {[%clk 0:02:39]} 14. Rfc1 {[%clk 0:02:24]}  Bf8 {[%clk 0:02:30]} 15. Be5 {[%clk 0:02:02]}  Nd7 {[%clk 0:02:16]} 16. Bb5 {[%clk 0:01:47]}  Nxe5 {[%clk 0:01:47]} 17. dxe5 {[%clk 0:01:45]}  e6 {[%clk 0:01:47]} 18. Qf4 {[%clk 0:01:31]}  Re7 {[%clk 0:01:44]} 19. Nd4 {[%clk 0:01:22]}  Bf5 {[%clk 0:01:14]} 20. g4 {[%clk 0:01:21]}  Be4 {[%clk 0:01:09]} 21. f3 {[%clk 0:01:10]}  a6 {[%clk 0:00:43]} 22. Bf1 {[%clk 0:01:08]}  Nc6 {[%clk 0:00:38]} 23. fxe4 {[%clk 0:01:03]}  Nxd4 {[%clk 0:00:38]} 24. exd4 {[%clk 0:01:02]}  Rd7 {[%clk 0:00:34]} 25. Nf3 {[%clk 0:00:53]}  Rc6 {[%clk 0:00:31]} 26. exd5 {[%clk 0:00:46]}  Rxd5 {[%clk 0:00:30]} 27. Rxc6 {[%clk 0:00:43]}  bxc6 {[%clk 0:00:30]} 28. Bc4 {[%clk 0:00:41]}  Rd7 {[%clk 0:00:30]} 29. Kg2 {[%clk 0:00:40]}  c5 {[%clk 0:00:28]} 30. dxc5 {[%clk 0:00:37]}  Bxc5 {[%clk 0:00:29]} 31. Re1 {[%clk 0:00:37]}  Be7 {[%clk 0:00:28]} 32. Re2 {[%clk 0:00:35]}  Qb6 {[%clk 0:00:27]} 33. b4 {[%clk 0:00:29]}  Qc6 {[%clk 0:00:27]} 34. Qe4 {[%clk 0:00:20]}  Qa4 {[%clk 0:00:25]} 35. Qa8+ {[%clk 0:00:13]}  Rd8 {[%clk 0:00:25]} 36. Qxa6 {[%clk 0:00:12]}  Qd1 {[%clk 0:00:26]} 37. Rf2 {[%clk 0:00:09]}  Qd7 {[%clk 0:00:17]} 38. Rc2 {[%clk 0:00:08]}  Qd1 {[%clk 0:00:15]} 39. Rf2 {[%clk 0:00:07]}  Qd7 {[%clk 0:00:14]} 40. Qb5 {[%clk 0:00:07]}  Qc7 {[%clk 0:00:14]} 41. Qa6 {[%clk 0:00:06]}  Kg7 {[%clk 0:00:13]} 42. Rc2 {[%clk 0:00:06]}  Qd7 {[%clk 0:00:13]} 43. Qb5 {[%clk 0:00:05]}  Qd1 {[%clk 0:00:12]} 44. Rf2 {[%clk 0:00:04]}  Qc1 {[%clk 0:00:12]} 45. Qb7 {[%clk 0:00:04]}  Re8 {[%clk 0:00:06]} 46. Bb5 {[%clk 0:00:03]}  Qc8 {[%clk 0:00:03]} 47. Qa7 {[%clk 0:00:03]}  Qa8 {[%clk 0:00:03]} 48. Qxa8 {[%clk 0:00:03]}  Rxa8 {[%clk 0:00:04]} 49. a4 {[%clk 0:00:03]}  Bxb4 {[%clk 0:00:04]} 50. Rc2 {[%clk 0:00:04]}  h6 {[%clk 0:00:03]} 51. h4 {[%clk 0:00:04]}  Ra7 {[%clk 0:00:02]} 52. g5 {[%clk 0:00:04]}  hxg5 {[%clk 0:00:02]} 53. hxg5 {[%clk 0:00:04]}  Be7 {[%clk 0:00:03]} 54. Kf2 {[%clk 0:00:04]}  Ra8 {[%clk 0:00:03]} 55. Ke2 {[%clk 0:00:04]}  Rh8 {[%clk 0:00:04]} 56. Rc7 {[%clk 0:00:04]}  Bd8 {[%clk 0:00:03]} 57. Rd7 {[%clk 0:00:04]}  Ba5 {[%clk 0:00:03]} 58. Rb7 {[%clk 0:00:04]}  Rd8 {[%clk 0:00:03]} 59. Rd7 {[%clk 0:00:04]}  Rc8 {[%clk 0:00:03]} 60. Ra7 {[%clk 0:00:04]}  Bb6 {[%clk 0:00:03]} 61. Rb7 {[%clk 0:00:03]}  Bc5 {[%clk 0:00:03]} 62. Bd3 {[%clk 0:00:03]}  Ra8 {[%clk 0:00:02]} 63. Bb5 {[%clk 0:00:03]}  Rc8 {[%clk 0:00:02]} 64. Bd7 {[%clk 0:00:02]}  Rb8 {[%clk 0:00:01]} 65. Rxb8 {[%clk 0:00:02]}  Bd6 {[%clk 0:00:01]} 66. exd6 {[%clk 0:00:02]}  f6 {[%clk 0:00:02]} 67. gxf6+ {[%clk 0:00:02]}  Kf7 {[%clk 0:00:01]} 68. a5 {[%clk 0:00:03]}  Kxf6 {[%clk 0:00:01]} 69. a6 {[%clk 0:00:02]}  e5 {[%clk 0:00:02]} 70. a7 {[%clk 0:00:02]}  e4 {[%clk 0:00:03]} 71. a8=Q {[%clk 0:00:03]}  exf3+ {[%clk 0:00:03]} 72. Qxf3+ {[%clk 0:00:03]}  Kg5 {[%clk 0:00:04]} 73. Qe3+ {[%clk 0:00:03]}  Kf6 {[%clk 0:00:01]} 74. Be8 {[%clk 0:00:04]}  Kg7 {[%clk 0:00:01]} 75. Bxg6 {[%clk 0:00:04]}  Kf6 {[%clk 0:00:02]} 76. Rf8+ {[%clk 0:00:05]}  Kg7 {[%clk 0:00:02]} 77. Rf3 {[%clk 0:00:05]}  Kh8 {[%clk 0:00:02]} 78. Rf2 {[%clk 0:00:05]}  Kg8 {[%clk 0:00:02]} 79. Be8 {[%clk 0:00:05]}  Kg7 {[%clk 0:00:03]} 80. Qg3+ {[%clk 0:00:05]}  Kh8 {[%clk 0:00:04]} 81. Rh2# {[%clk 0:00:06]} 1-0


[Site "https://www.chess.com"]